bitfinex/quotes_ETHUSD_20220202
["timestamp","ask_amount","ask_price","bid_price","bid_amount"]
[1643795054309,5.79159118,2770.2,2770.1,7.37147768]
[1643795054706,4.86902368,2770.2,2770.1,7.37147768]
[1643795055704,5.77157509,2770.2,2770.1,7.37147768]
[1643795056349,5.77157509,2770.2,2770.1,6.30319036]
[1643795056350,9.17434509,2770.2,2770.1,6.30319036]
[1643795056550,6.67434509,2770.2,2770.1,6.30319036]
[1643795056747,5.77179368,2770.2,2770.1,6.30319036]
[1643795059698,5.77179368,2770.2,2770.1,0.88677006]
[1643795059903,5.59139368,2770.2,2770.1,0.88677006]
[1643795060908,3.72941262,2770.2,2770.1,0.88677006]
[1643795061110,2.82664262,2770.2,2770.1,0.88677006]
[1643795061306,2.82664262,2770.2,2770.1,1.06717006]
[1643795061307,1.3,2770.2,2770.1,1.06717006]
[1643795063109,1.3,2770.2,2770.1,0.88677006]
[1643795075708,2.82664265,2770.2,2770.1,0.88677006]
[1643795075909,2.82663934,2770.2,2770.1,0.88677006]
[1643795076708,1.3,2770.2,2770.1,0.88677006]
[1643795076908,1.4804,2770.2,2770.1,0.88677006]
[1643795079166,3.00704982,2770.2,2770.1,0.88677006]
[1643795079367,4.65862159,2770.2,2770.1,0.88677006]
[1643795084212,2.82664982,2770.2,2770.1,0.88677006]
[1643795085608,4.6619658,2770.2,2770.1,0.88677006]
[1643795087658,4.8423658,2770.2,2770.1,0.88677006]
[1643795088261,2.70704982,2770.2,2770.1,0.88677006]
[1643795088460,2.70546966,2770.2,2770.1,0.88677006]
[1643795088659,2.70546966,2770.2,2770.1,0.54126178]
[1643795088859,2.52506966,2770.2,2770.1,0.54126178]
[1643795089258,0.99841984,2770.2,2770.1,0.54126178]
[1643795089719,2.82494054,2770.2,2770.1,0.54126178]
[1643795095156,1.29841984,2770.2,2770.1,0.54126178]
[1643795095655,1.29841984,2770.2,2770.1,5.69126178]
[1643795095862,2.50319292,2771.2,2770.2,6.75]
[1643795095863,1.086,2771.1,2770.2,6.75]
[1643795096060,2.61222388,2771.0,2770.3,0.7180026]
[1643795096259,1.086,2770.8,2770.3,1.7180026]
[1643795096459,1.52622388,2770.9,2770.2,1.20224]
[1643795096460,1.086,2770.6,2770.4,0.1804]
[1643795096659,1.43081693,2770.6,2770.3,0.1804]
[1643795096859,1.086,2770.6,2770.2,1.1804]
[1643795097207,1.086,2770.5,2770.4,0.3]
[1643795097415,1.086,2770.5,2770.4,7.2304]
[1643795097808,1.086,2770.5,2770.4,1.4804]
[1643795098007,1.086,2770.5,2770.4,1.91080332]
[1643795098210,1.086,2770.5,2770.4,1.80460185]
[1643795098412,1.086,2770.5,2770.4,2.80460185]
[1643795098611,1.086,2770.5,2770.4,4.40460185]
[1643795098807,1.086,2770.5,2770.4,5.40460185]
[1643795099208,1.086,2770.5,2770.4,7.62248598]
[1643795099409,1.086,2770.5,2770.4,9.42665598]
[1643795100010,1.086,2770.5,2770.4,9.2005879]
[1643795100409,1.086,2770.5,2770.4,9.1886782]
[1643795100608,1.086,2770.5,2770.4,4.17836853]
[1643795100810,1.386,2770.5,2770.4,2.37419853]
[1643795101265,1.386,2770.5,2770.4,0.4804]
[1643795101461,1.386,2770.5,2770.4,0.1804]
[1643795101664,1.73925516,2770.5,2770.4,0.1804]
[1643795102562,1.73925516,2770.5,2770.1,0.54126178]
[1643795102965,1.68925516,2770.5,2770.2,2.86468156]
[1643795103163,1.68925516,2770.5,2770.2,0.90221]
[1643795103567,1.68925516,2770.5,2770.2,3.18367703]
[1643795103764,1.336,2770.5,2770.3,1.0]
[1643795103963,1.336,2770.5,2770.4,3.85990027]
[1643795104162,1.336,2770.5,2770.4,0.90990027]
[1643795104364,1.336,2770.5,2770.4,1.90990027]
[1643795104565,1.336,2770.5,2770.4,3.90589416]
[1643795104809,1.336,2770.5,2770.4,1.0]
[1643795105009,1.336,2770.5,2770.2,1.90221]
[1643795105214,1.336,2770.5,2770.2,1.0]
[1643795105614,1.336,2770.5,2770.1,0.54126178]
[1643795107018,2.2383869,2770.5,2770.1,0.54126178]
[1643795107215,2.4187869,2770.5,2770.1,0.54126178]
[1643795109256,2.4187869,2770.5,2770.3,0.66861455]
[1643795109459,2.4187869,2770.5,2770.3,1.3372291]
[1643795114312,2.4187869,2770.5,2770.3,0.66861455]
[1643795114512,2.4187869,2770.5,2770.4,0.66861455]
[1643795114712,3.94524897,2770.5,2770.4,1.3372291]
[1643795115514,3.94525137,2770.5,2770.4,1.3372291]
[1643795115957,3.76485137,2770.5,2770.4,1.3372291]
[1643795116959,4.57819499,2770.5,2770.4,1.3372291]
[1643795117162,4.57819499,2770.5,2770.1,0.54126178]
[1643795117163,0.29121478,2770.3,2770.1,0.54126178]
[1643795117364,2.61246447,2770.2,2770.1,0.54126178]
[1643795117561,2.91246447,2770.2,2770.1,0.54126178]
[1643795119368,1.386,2770.2,2770.1,0.54126178]
[1643795128811,2.91260794,2770.2,2770.1,0.54126178]
[1643795130417,2.61260794,2770.2,2770.1,0.54126178]
[1643795130618,1.086,2770.2,2770.1,0.54126178]
[1643795133164,1.386,2770.2,2770.1,2.52457593]
[1643795133366,1.386,2770.2,2770.1,3.52457593]
[1643795133566,1.386,2770.2,2770.1,3.46022202]
[1643795134064,1.386,2770.2,2770.1,1.54126178]
[1643795134265,1.386,2770.2,2770.1,2.46368881]
[1643795134464,1.386,2770.2,2770.1,0.54126178]
[1643795134710,1.386,2770.2,2770.1,1.54126178]
[1643795134908,1.386,2770.2,2770.1,2.46764214]
[1643795135109,1.386,2770.2,2770.1,0.54126178]
[1643795135314,1.386,2770.2,2770.1,1.54126178]
[1643795135513,1.386,2770.2,2770.1,0.54126178]
[1643795138317,1.3848209,2770.2,2770.1,4.14126178]
[1643795138583,1.3848209,2770.2,2770.1,1.54126178]
[1643795138791,1.3848209,2770.2,2770.1,0.54126178]
[1643795140891,1.086,2770.2,2770.1,0.54126178]
[1643795141693,1.386,2770.2,2770.1,0.54126178]
[1643795142727,1.086,2770.2,2770.1,0.54126178]
[1643795143122,1.386,2770.2,2770.1,0.54126178]
[1643795143721,1.086,2770.2,2770.1,0.54126178]
[1643795143920,1.086,2770.2,2770.1,1.44360178]
[1643795144323,1.086,2770.2,2770.1,2.44360178]
[1643795144721,1.086,2770.2,2770.1,1.44360178]
[1643795144722,1.386,2770.2,2770.1,1.44360178]
[1643795145121,1.386,2770.2,2770.1,0.54126178]
[1643795146764,1.086,2770.0,2769.7,3.0885198]
[1643795146966,1.086,2770.0,2769.6,0.1804]
[1643795147165,1.386,2770.0,2769.6,0.1804]
[1643795147877,1.086,2769.8,2769.6,0.1804]
[1643795148071,1.086,2769.8,2769.5,0.1804]
[1643795148072,1.086,2769.7,2769.5,0.1804]
[1643795148374,1.086,2769.7,2769.4,0.1804]
[1643795148573,1.086,2769.7,2769.3,7.47]
[1643795148574,1.386,2769.7,2769.3,7.47]
[1643795148769,1.086,2769.4,2769.3,7.47]
[1643795149168,1.386,2769.4,2769.3,7.47]
[1643795149369,1.76602893,2769.4,2769.3,7.47]
[1643795150420,1.94642893,2769.4,2769.3,7.47]
[1643795151622,0.4125389,2769.5,2769.3,7.47]
[1643795151817,0.66471942,2769.4,2769.3,7.47]
[1643795152016,0.66471942,2769.4,2769.3,7.77]
[1643795152925,0.66471942,2769.4,2769.3,8.67286]
[1643795155470,0.48421942,2769.4,2769.3,8.67286]
[1643795160222,0.4125389,2769.5,2769.3,8.67286]
[1643795174013,0.4125389,2769.5,2769.3,8.97286]
[1643795174214,0.4125389,2769.5,2769.4,1.8056715]
[1643795175518,1.99856553,2769.8,2769.4,1.8056715]
[1643795175519,0.1804,2769.8,2769.4,2.53306699]
[1643795175821,3.87290757,2770.5,2769.4,7.44358099]
[1643795175822,0.1804,2770.1,2769.4,7.44358099]
[1643795176081,2.1804,2770.3,2769.4,6.44358099]
[1643795176286,1.52662431,2770.2,2769.5,0.1804]
[1643795176481,0.1804,2770.1,2769.5,0.1804]
[1643795176882,0.36456664,2770.1,2769.5,1.08302]
[1643795177182,0.36456664,2770.1,2769.5,1.985638]
[1643795177383,0.36456664,2770.1,2769.7,1.80536]
[1643795177784,0.36456664,2770.1,2769.7,2.10536]
[1643795178184,0.1804,2770.2,2769.7,2.10536]
[1643795178386,1.5266396,2770.1,2769.9,0.9026633]
[1643795178585,1.99746192,2770.5,2770.0,2.7078901]
[1643795178586,0.1804,2770.3,2770.0,2.7078901]
[1643795178791,1.52655952,2770.2,2770.0,2.2078901]
[1643795178985,0.1804,2770.1,2770.0,2.2078901]
[1643795179186,0.1804,2770.4,2770.0,2.60600594]
[1643795179387,0.36132,2770.7,2770.2,0.87772167]
[1643795179587,0.36132,2770.7,2770.2,1.78028567]
[1643795179588,1.52645811,2770.6,2770.2,1.78028567]
[1643795179821,0.1804,2770.5,2770.2,1.202564]
[1643795180020,1.52645811,2770.4,2770.2,1.202564]
[1643795180225,0.1804,2770.3,2770.2,1.202564]
[1643795180422,1.70685811,2770.3,2770.2,3.007714]
[1643795180624,1.52645811,2770.3,2770.2,1.37936995]
[1643795181229,3.35721317,2770.3,2770.2,1.37936995]
[1643795181435,3.35721317,2770.3,2770.2,0.902564]
[1643795181831,3.53761317,2770.3,2770.2,0.902564]
[1643795182830,3.35721317,2770.3,2770.2,0.902564]
[1643795186171,1.52645811,2770.3,2770.2,0.902564]
[1643795188560,3.39282447,2770.3,2770.2,0.902564]
[1643795190561,1.52645811,2770.3,2770.2,0.902564]
[1643795190762,3.35401251,2770.3,2770.2,0.902564]
[1643795190965,1.52645811,2770.3,2770.2,0.902564]
[1643795191166,3.34896733,2770.3,2770.2,0.902564]
[1643795194713,1.52645811,2770.3,2770.2,0.902564]
[1643795195217,3.38879869,2770.3,2770.2,0.902564]
[1643795196723,4.56971868,2770.3,2770.2,0.902564]
[1643795196931,5.09271868,2770.3,2770.2,0.902564]
[1643795197122,5.09271869,2770.3,2770.2,0.902564]
[1643795197721,6.09271868,2770.3,2770.2,0.902564]
[1643795198768,6.98067151,2770.3,2770.2,0.902564]
[1643795199576,10.48067151,2770.3,2769.9,3.0085072]
[1643795199772,0.68512557,2770.1,2769.9,3.0085072]
[1643795199979,2.62472626,2770.0,2769.9,2.1056972]
[1643795200279,4.15118437,2770.0,2769.9,2.1056972]
[1643795200477,5.01722994,2770.0,2769.9,2.1056972]
[1643795200678,6.01722993,2770.0,2769.9,0.47703092]
[1643795200876,5.01722994,2770.0,2769.9,0.47703092]
[1643795201077,6.01722993,2770.0,2769.9,0.47703092]
[1643795201377,6.01722993,2770.0,2769.5,0.90294]
[1643795201576,1.52645811,2769.9,2769.7,0.9029486]
[1643795201776,2.58514459,2769.8,2769.7,0.9029486]
[1643795201983,4.1116027,2769.8,2769.7,0.9029486]
[1643795202819,4.2925227,2769.8,2769.7,0.9029486]
[1643795207078,2.23037811,2769.8,2769.7,0.9029486]
[1643795208683,2.23037811,2769.8,2769.7,0.4029486]
[1643795219025,2.23037811,2769.8,2769.7,0.7029486]
[1643795221469,2.04945811,2769.8,2769.7,0.7029486]
[1643795221670,1.52645811,2769.8,2769.7,0.7029486]
[1643795222985,1.70737811,2769.8,2769.7,0.7029486]
[1643795223685,1.52645811,2769.8,2769.7,0.7029486]
[1643795223886,1.70737811,2769.8,2769.7,0.7029486]
[1643795224286,1.70737811,2769.8,2769.7,0.4029486]
[1643795225638,1.65737811,2769.8,2769.7,0.4029486]
[1643795229875,1.65737811,2769.8,2769.7,0.7029486]
[1643795230879,1.47645811,2769.8,2769.7,0.7029486]
[1643795232529,0.38879966,2769.9,2769.8,0.1804]
[1643795232727,9.966e-05,2769.9,2769.8,0.1804]
[1643795234333,0.1804,2770.4,2769.8,1.08301]
[1643795234531,0.1804,2770.5,2769.9,0.9025877]
[1643795234730,0.1804,2770.5,2770.0,0.3]
[1643795234927,0.1804,2770.6,2770.0,0.3]
[1643795235531,0.1804,2770.6,2770.1,0.90261]
[1643795235734,1.58766557,2770.8,2770.2,0.1804]
[1643795235735,0.90254,2770.8,2770.2,0.1804]
[1643795236375,0.31777759,2770.6,2770.2,0.1804]
[1643795236967,0.31777759,2770.6,2770.2,1.08291]
[1643795237169,0.31777759,2770.6,2770.2,1.9854178]
[1643795238573,0.31777759,2770.6,2770.2,1.8050178]
[1643795238773,0.31777759,2770.6,2770.3,0.90255]
[1643795238774,1.22038759,2770.6,2770.3,0.90255]
[1643795238980,1.22038759,2770.6,2770.4,0.9026293]
[1643795239173,0.18092,2770.5,2770.3,1.8052585]
[1643795239375,0.1804,2770.4,2770.3,1.8052585]
[1643795241222,0.1804,2770.4,2770.3,2.1052585]
[1643795243878,2.80810316,2770.6,2770.3,2.1052585]
[1643795243879,0.1804,2770.5,2770.3,2.1052585]
[1643795245184,0.31777759,2770.6,2770.3,2.1052585]
[1643795245383,0.31777759,2770.6,2770.4,0.9025749]
[1643795245785,1.52653173,2770.5,2770.4,0.9025749]
[1643795246187,1.52653173,2770.5,2770.4,1.2025749]
[1643795246394,1.52653173,2770.5,2770.4,4.3829749]
[1643795246589,0.1804,2770.9,2770.5,0.90238]
[1643795246799,0.68512557,2771.4,2770.6,1.98509]
[1643795246800,1.52631114,2770.8,2770.6,1.98509]
[1643795247089,0.86552557,2771.4,2770.7,0.3]
[1643795247326,0.43258932,2771.1,2770.7,1.20851484]
[1643795247523,1.52627931,2771.0,2770.8,0.9022775]
[1643795247724,0.68512557,2771.5,2770.8,1.2022775]
[1643795247725,0.1804,2771.5,2770.8,1.2022775]
[1643795247923,1.52617019,2771.4,2770.8,0.3]
[1643795248123,1.52617019,2771.5,2770.9,0.1804]
[1643795248322,1.52617019,2771.5,2770.9,0.4804]
[1643795248524,1.52617019,2771.4,2771.0,0.90232]
[1643795248728,1.52617019,2771.4,2771.1,0.3]
[1643795248926,0.4323704,2771.3,2771.1,0.3]
[1643795249127,1.52617019,2771.2,2771.1,0.3]
[1643795249727,1.52617019,2771.2,2771.1,2.1047196]
[1643795249929,1.52617019,2771.2,2771.0,0.9023521]
[1643795249930,3.69895849,2771.2,2771.0,0.9023521]
[1643795250134,4.95920257,2771.1,2770.6,0.1804]
[1643795250339,1.70709019,2771.0,2770.5,3.0615]
[1643795250530,4.36363427,2770.9,2770.5,0.3]
[1643795250830,1.85545111,2770.8,2770.6,1.8050181]
[1643795251092,1.52617019,2770.7,2770.6,3.9097881]
[1643795251295,1.52617019,2770.7,2770.6,3.6097881]
[1643795251491,3.37207979,2770.7,2770.6,1.8050181]
[1643795251691,1.52617019,2770.7,2770.6,1.8050181]
[1643795252694,1.52617019,2770.7,2770.6,2.1050181]
[1643795256228,0.1804,2771.2,2770.6,2.1050181]
[1643795256424,1.52630282,2771.1,2770.7,1.08269]
[1643795256724,0.1804,2771.4,2770.8,1.2022922]
[1643795256725,1.52630282,2771.0,2770.8,1.2022922]
[1643795256925,1.52630282,2770.9,2770.8,1.2022922]
[1643795257230,0.1804,2771.4,2770.8,1.2022922]
[1643795257231,0.36145863,2771.0,2770.8,1.2022922]
[1643795257424,1.52638144,2770.9,2770.8,1.2022922]
[1643795259076,3.35541131,2770.9,2770.8,1.2022922]
[1643795259276,1.52638144,2770.9,2770.8,0.3]
[1643795259476,1.52638144,2770.9,2770.7,2.28096863]
[1643795260475,1.52638144,2770.9,2770.8,0.9022922]
[1643795260876,2.42882144,2770.9,2770.8,0.9022922]
[1643795261281,2.42882144,2770.9,2770.8,1.2022922]
[1643795265986,2.60980144,2770.9,2770.4,3.2118848]
[1643795266188,2.60980144,2770.9,2770.2,1.98541]
[1643795266189,1.52638144,2770.8,2770.2,1.98541]
[1643795266385,1.52638144,2770.8,2769.9,0.25]
[1643795266386,0.1804,2770.7,2770.1,0.1804]
[1643795266589,0.1804,2770.7,2770.0,7.1582]
[1643795266590,2.04938144,2770.6,2770.0,7.1582]
[1643795266789,1.70678144,2770.5,2770.0,7.1582]
[1643795266989,1.70678144,2770.5,2770.1,0.9026552]
[1643795266990,1.52638144,2770.4,2770.1,0.9026552]
[1643795267190,0.90265,2770.3,2770.1,0.9026552]
[1643795267389,1.52638144,2770.2,2770.1,0.9026552]
[1643795267795,1.52638144,2770.2,2770.1,1.2026552]
[1643795268991,1.52638144,2770.3,2770.1,1.2026552]
[1643795269491,1.52638144,2770.3,2770.1,3.0078759]
[1643795270923,0.18092,2770.2,2770.1,2.7078759]
[1643795271126,0.18092,2770.2,2769.8,3.0913]
[1643795271127,2.41070144,2770.2,2769.8,4.8967678]
[1643795271322,1.52638144,2770.1,2769.9,0.3]
[1643795271522,2.41921719,2770.1,2769.9,0.3]
[1643795271722,1.52638144,2770.0,2769.9,0.3]
[1643795272729,1.70730144,2770.0,2769.9,0.3]
[1643795277423,3.62412744,2770.0,2769.9,0.3]
[1643795278121,1.70730144,2770.0,2769.9,0.3]
[1643795278326,1.52638144,2770.0,2769.9,0.3]
[1643795278525,0.1804,2770.3,2769.9,0.3]
[1643795278723,1.52661184,2770.2,2770.0,0.1804]
[1643795278922,0.1804,2770.6,2770.0,0.1804]
[1643795278923,3.40648319,2770.1,2770.0,0.1804]
[1643795279123,3.40648319,2770.1,2769.9,1.20258]
[1643795279124,1.52661184,2770.1,2769.9,1.20258]
[1643795279322,1.52661184,2770.0,2769.9,0.3]
[1643795279824,0.1804,2770.4,2769.9,0.3]
[1643795280025,1.52660422,2770.3,2770.0,0.1804]
[1643795280223,0.1804,2770.6,2770.0,0.1804]
[1643795280224,1.52660422,2770.2,2770.0,0.1804]
[1643795280423,1.52660422,2770.1,2769.9,0.4804]
[1643795280622,1.04644557,2770.7,2769.9,0.4804]
[1643795280623,1.52660422,2770.0,2769.9,0.4804]
[1643795280829,0.1804,2770.5,2769.9,0.4804]
[1643795281073,1.94314549,2770.4,2770.0,0.9026392]
[1643795281273,0.1804,2770.5,2770.0,0.9026392]
[1643795281274,1.52664531,2770.3,2770.1,0.3]
[1643795281475,1.52664531,2770.2,2770.1,0.3]
[1643795281976,1.52664531,2770.2,2770.0,0.3]
[1643795282174,0.1804,2770.6,2770.0,0.3]
[1643795282377,0.43985602,2770.4,2770.0,0.3]
[1643795282576,1.52655918,2770.3,2770.0,0.3]
[1643795282978,1.52655918,2770.3,2770.1,1.80524]
[1643795283278,1.52655918,2770.3,2770.1,4.8129374]
[1643795285321,1.9859,2771.1,2770.2,5.53278]
[1643795285322,0.1804,2770.8,2770.2,5.53278]
[1643795285521,0.18092,2771.5,2770.2,1.38278]
[1643795285522,1.52633932,2770.7,2770.2,1.38278]
[1643795285722,1.52633932,2770.6,2770.3,1.0]
[1643795285921,1.85912847,2771.3,2770.5,1.80467]
[1643795286128,0.39606781,2770.9,2770.6,0.1804]
[1643795286319,0.39606781,2770.9,2770.5,1.65270981]
[1643795286520,0.39606781,2770.9,2770.7,0.9023938]
[1643795286921,1.86585365,2770.8,2770.7,0.9023938]
[1643795287122,2.04677365,2770.8,2770.7,0.9023938]
[1643795287327,3.56977365,2770.8,2770.7,0.9023938]
[1643795287524,4.25489922,2770.8,2770.6,2.7071276]
[1643795287725,4.25489922,2770.8,2770.6,1.8047876]
[1643795287726,1.98456428,2770.7,2770.6,1.8047876]
[1643795288565,1.98456428,2770.7,2770.6,2.1047876]
[1643795289074,0.18092,2770.7,2770.6,2.1047876]
[1643795289270,0.18092,2770.7,2770.6,3.9099076]
[1643795289468,1.99195074,2770.7,2770.6,3.9099076]
[1643795291072,0.18092,2770.7,2770.6,3.9099076]
[1643795292525,1.8116311,2771.2,2770.6,3.9099076]
[1643795292526,0.1804,2771.1,2770.6,3.9099076]
[1643795292725,0.36132,2771.2,2770.6,3.9099076]
[1643795292922,1.04644557,2771.2,2770.6,3.9099076]
[1643795293934,0.3241217,2770.9,2770.6,3.9099076]
[1643795294123,0.3241217,2770.9,2770.7,1.0827606]
[1643795294331,0.3241217,2770.9,2770.8,0.3]
[1643795295525,0.5050417,2770.9,2770.8,0.3]
[1643795295968,0.3241217,2770.9,2770.8,0.3]
[1643795297171,0.68512557,2771.1,2770.8,0.3]
[1643795297374,0.1804,2771.2,2770.9,1.8046506]
[1643795297773,0.1804,2771.2,2771.0,0.3]
[1643795297972,0.68512557,2771.3,2771.0,0.3]
[1643795298172,0.68512557,2771.2,2771.0,0.3]
[1643795298373,0.68512557,2771.3,2771.0,1.20232]
[1643795298573,0.68512557,2771.3,2771.0,0.3]
[1643795298574,0.44618664,2771.1,2771.0,0.3]
[1643795298779,0.1804,2771.4,2771.0,0.3]
[1643795298974,3.0639277,2771.7,2771.1,0.9021743]
[1643795298975,0.86552557,2771.6,2771.1,0.9021743]
[1643795299183,0.68512557,2771.6,2771.1,0.9021743]
[1643795299377,0.68512557,2771.6,2771.1,1.2021743]
[1643795299817,0.68512557,2771.6,2771.2,0.90222]
[1643795300016,2.51746978,2771.6,2771.2,1.08262]
[1643795300217,0.68512557,2771.5,2771.2,1.08262]
[1643795300416,1.83009708,2771.4,2771.2,1.08262]
[1643795300617,1.83009708,2771.4,2771.2,0.90222]
[1643795300818,0.16626619,2771.3,2771.2,0.90222]
[1643795301018,0.85139176,2771.3,2771.2,0.90222]
[1643795301219,0.68512557,2771.3,2771.2,0.90222]
[1643795301416,0.1804,2771.4,2771.2,0.90222]
[1643795301625,0.52839866,2771.6,2771.2,0.90222]
[1643795301826,0.68512557,2771.5,2771.2,0.90222]
[1643795302018,1.8522388,2771.4,2771.2,0.90222]
[1643795302219,0.68512557,2771.5,2771.2,1.20222]
[1643795302220,0.86552557,2771.5,2771.2,1.20222]
[1643795302620,0.86552557,2771.5,2771.3,2.7068529]
[1643795302819,2.04782541,2771.4,2771.3,2.7068529]
[1643795303021,2.04782541,2771.4,2771.3,3.0068529]
[1643795303771,0.86552557,2771.5,2771.3,2.7068529]
[1643795303971,0.68512557,2771.5,2771.3,2.7068529]
[1643795304874,0.1804,2771.4,2771.3,2.7068529]
[1643795305072,0.1804,2771.4,2771.3,0.9022929]
[1643795305673,0.1804,2771.4,2771.3,1.2022929]
[1643795305878,1.70666907,2771.4,2771.3,1.2022929]
[1643795306276,1.70666907,2771.4,2771.2,0.90222]
[1643795306277,1.70666907,2771.4,2771.2,0.47649321]
[1643795306476,1.52626907,2771.3,2771.2,0.47649321]
[1643795307219,1.52626907,2771.3,2771.2,1.37875311]
[1643795307424,1.52626907,2771.5,2771.2,1.37875311]
[1643795307624,1.52626907,2771.4,2771.2,1.37875311]
[1643795307925,1.52626907,2771.3,2771.2,1.37875311]
[1643795308425,1.52626907,2771.3,2771.2,1.67875311]
[1643795308624,1.52626907,2771.5,2771.2,1.67875311]
[1643795308828,1.52626907,2771.4,2771.2,1.67875311]
[1643795309025,1.52626907,2771.3,2771.2,1.67875311]
[1643795309726,1.52626907,2771.5,2771.2,1.67875311]
[1643795310024,2.42862907,2771.4,2771.2,1.67875311]
[1643795310226,1.52626907,2771.3,2771.2,1.67875311]
[1643795314727,1.52626907,2771.4,2771.2,1.67875311]
[1643795314918,1.52626907,2771.3,2771.2,1.67875311]
[1643795315120,1.52626907,2771.4,2771.2,1.67875311]
[1643795319275,1.52626907,2771.3,2771.2,1.67875311]
[1643795319676,1.52626907,2771.5,2771.2,1.67875311]
[1643795319880,1.52626907,2771.4,2771.2,1.67875311]
[1643795320075,1.52626907,2771.3,2771.2,1.67875311]
[1643795320276,1.52626907,2771.5,2771.2,1.67875311]
[1643795320478,1.52626907,2771.5,2771.3,0.90219]
[1643795320777,1.52626907,2771.5,2771.4,0.3]
[1643795323138,2.21139464,2771.5,2771.4,0.3]
[1643795324842,1.52626907,2771.5,2771.4,0.3]
[1643795326376,1.52626907,2771.5,2771.3,1.37866378]
[1643795326977,1.52626907,2771.5,2771.3,2.28085378]
[1643795327782,2.21139464,2771.5,2771.3,2.28085378]
[1643795328381,2.21139464,2771.5,2771.4,0.3]
[1643795329720,1.52626907,2771.5,2771.4,0.3]
[1643795330126,2.83984217,2771.7,2771.4,0.3]
[1643795330127,1.52626907,2771.6,2771.4,0.3]
[1643795330321,2.83984217,2771.7,2771.4,0.3]
[1643795330322,1.52626907,2771.5,2771.4,1.2020801]
[1643795330521,2.83984217,2771.7,2771.4,1.2020801]
[1643795330522,1.97361285,2771.6,2771.4,1.2020801]
[1643795330923,2.83984217,2771.7,2771.4,1.2020801]
[1643795330924,1.52626907,2771.5,2771.4,1.2020801]
[1643795331131,2.1547166,2771.7,2771.5,0.1804]
[1643795331324,1.52593139,2771.6,2771.5,0.1804]
[1643795332124,1.52593139,2771.6,2771.5,2.8860952]
[1643795332329,2.1547166,2771.7,2771.5,4.24231679]
[1643795332528,0.1804,2772.2,2771.7,0.90186]
[1643795332737,0.68512557,2772.3,2771.8,0.1802]
[1643795333327,0.68512557,2772.3,2771.8,0.4802]
[1643795333772,0.68512557,2772.3,2771.9,0.3]
[1643795334972,0.35950549,2772.4,2772.0,1.80368]
[1643795334973,0.68512557,2772.4,2772.0,1.80368]
[1643795336075,0.68512557,2772.4,2772.1,0.9018242]
[1643795336274,0.68512557,2772.4,2772.1,1.2018242]
[1643795336473,0.68512557,2772.4,2772.1,2.1036442]
[1643795339633,0.1802,2772.6,2772.1,2.1036442]
[1643795339634,0.68512557,2772.5,2772.1,2.1036442]
[1643795339830,0.68512557,2772.4,2772.1,2.1036442]
[1643795340633,0.68512557,2772.4,2772.1,3.98984592]
[1643795340832,0.86532557,2772.6,2772.1,2.1036442]
[1643795341073,0.68512557,2772.6,2772.1,2.2838442]
[1643795341475,0.86532557,2772.7,2772.1,2.2838442]
[1643795341776,0.68512557,2772.6,2772.1,2.2838442]
[1643795342176,0.68512557,2772.6,2772.1,4.16874156]
[1643795342681,0.68512557,2772.6,2772.1,2.2838442]
[1643795342880,0.86532557,2772.7,2772.1,2.2838442]
[1643795344080,0.86532557,2772.7,2772.4,0.76841972]
[1643795344281,0.86532557,2772.7,2772.4,1.97017612]
[1643795345325,1.2345612,2772.7,2772.4,1.97017612]
[1643795345926,1.2345612,2772.7,2772.4,1.2017564]
[1643795346125,0.86532557,2772.7,2772.4,1.2017564]
[1643795346331,0.86532557,2772.7,2772.3,1.8035128]
[1643795346332,0.1802,2772.7,2772.3,1.37793055]
[1643795347126,0.1802,2772.7,2772.4,0.9017564]
[1643795347331,0.61259724,2772.7,2772.4,0.9017564]
[1643795347732,0.1802,2772.7,2772.4,0.9017564]
[1643795347932,0.1802,2772.7,2772.4,1.8034764]
[1643795348335,0.2012,2772.8,2772.4,2.1034764]
[1643795348776,0.57198502,2772.8,2772.4,2.1034764]
[1643795349175,0.57198502,2772.8,2772.4,1.2017564]
[1643795349976,1.87866265,2772.7,2772.4,1.2017564]
[1643795350177,1.87866265,2772.7,2772.4,0.3]
[1643795350178,2.78052265,2772.7,2772.4,0.3]
[1643795350381,2.78052265,2772.7,2772.1,1.9840447]
[1643795350382,3.46564822,2772.7,2772.1,1.9840447]
[1643795350683,0.86552557,2772.5,2772.1,1.8038447]
[1643795350880,0.86552557,2772.5,2771.8,4.0737]
[1643795350881,2.74850744,2772.4,2771.8,3.8935]
[1643795351278,2.74850744,2772.4,2771.7,3.2789]
[1643795351476,4.55259744,2772.4,2771.7,3.2789]
[1643795351681,0.3620434,2772.0,2771.7,3.2789]
[1643795351978,0.3620434,2772.0,2771.7,4.1808688]
[1643795352227,0.3620434,2772.0,2771.7,0.9019688]
[1643795352429,1.52583425,2771.9,2771.7,0.9019688]
[1643795352630,0.90196,2772.3,2771.8,0.3]
[1643795352931,1.52583748,2772.2,2771.7,0.3]
[1643795353133,1.52583748,2772.2,2771.9,0.9019261]
[1643795353331,1.52583748,2772.2,2772.0,0.3]
[1643795353537,1.52583748,2772.1,2772.0,0.3]
[1643795353731,1.52583748,2772.3,2772.0,0.3]
[1643795354931,1.52583748,2772.3,2772.1,0.90181]
[1643795355132,1.52583748,2772.3,2772.2,0.901807]
[1643795355333,1.52583748,2772.3,2772.2,1.201807]
[1643795359939,1.52583748,2772.3,2772.2,0.3]
[1643795360139,1.70603748,2772.3,2772.1,0.9019673]
[1643795360441,1.52583748,2772.2,2772.1,1.2019673]
[1643795364584,1.52583748,2772.2,2772.1,0.3]
[1643795364785,1.52583748,2772.2,2771.9,0.3]
[1643795365587,0.90204,2772.1,2771.9,0.3]
[1643795365785,1.52583748,2772.0,2771.9,0.3]
[1643795366591,1.52583748,2772.0,2771.8,0.47627831]
[1643795367431,1.52583748,2771.9,2771.8,1.37817831]
[1643795367829,1.52583748,2772.2,2771.8,1.37817831]
[1643795368028,0.1802,2772.3,2771.8,1.37817831]
[1643795368029,1.52583748,2772.1,2771.8,1.37817831]
[1643795368232,1.52583748,2772.0,2771.9,0.3]
[1643795368629,1.52583748,2772.2,2771.9,0.3]
[1643795368829,1.52583748,2772.1,2771.9,0.3]
[1643795369030,1.52583748,2772.0,2771.9,0.3]
[1643795369429,1.52583748,2772.2,2771.9,0.3]
[1643795369632,1.52583748,2772.1,2771.9,0.3]